Cogmind - Beta 17 @@@ ROGUE MODE // 2026.07.14 @ 19:52:08 Player: hubert Result: Destroyed by G-34 Mercenary with Small Laser Performance ------------- Evolutions (0) 0 Regions Visited (1) 200 Robots Destroyed (15) 75 Value Destroyed (448) 448 Prototype IDs (0) 0 Alien Tech Used (0) 0 Bonus (0) 0 TOTAL SCORE: 723 Bonus ------- None Cogmind --------- Core Integrity 0/250 Matter 287/300 Energy 125/125 System Corruption 3% Temperature Cool (54) Movement Walking (400) Ox4 Location -10/Materials Parts ------- > --- POWER (1) -------- Light Ion Engine > --- PROPULSION (2) --- Aluminum Leg Aluminum Leg > --- UTILITY (2) ------ Huge Storage Unit Propulsion Shielding > --- WEAPON (2) ------- Small Laser Light Assault Rifle > --- INVENTORY (25) --- Ion Engine Light Nuclear Core Compact Wheel Compact Wheel Hover Unit Heat Sink Improved Heat Sink Huge Storage Unit Targeting Computer Utility Shielding Weapon Shielding Light Assault Rifle Peak State ------------ > --- POWER ------------ Light Ion Engine > --- PROPULSION ------- Light Treads Light Treads > --- UTILITY ---------- Heat Sink Small Storage Unit > --- WEAPON ----------- Assault Rifle Assault Rifle > --- INVENTORY -------- Light Ion Engine Light Nuclear Core Aluminum Leg Aluminum Leg Compact Wheel Compact Wheel Improved Heat Sink Light Assault Rifle [Rating: 8] Favorites ----------- Power Light Ion Engine Engine Light Ion Engine Propulsion Aluminum Leg Treads Light Treads Leg Aluminum Leg Utility Huge Storage Unit Device Heat Sink Storage Huge Storage Unit Protection Propulsion Shielding Weapon Assault Rifle Energy Gun Small Laser Ballistic Gun Assault Rifle Build | -11 -10 ------- Run | Yrd Mat Slots Evolved . | . . Power . | . . Propulsion . | . . Utility . | . . Weapon . | . . Parts Attached 17 | 6 11 Power 2 | 1 1 Engine 2 | 1 1 Core . | . . Reactor . | . . Propulsion 5 | 2 3 Treads 2 | 2 . Leg 3 | . 3 Wheel . | . . Hover . | . . Flight . | . . Utility 4 | 1 3 Device 1 | . 1 Storage 2 | 1 1 Processor . | . . Hackware . | . . Protection 1 | . 1 Artifact . | . . Weapon 6 | 2 4 Energy Gun 2 | . 2 Energy Cannon . | . . Ballistic Gun 4 | 2 2 Ballistic Cannon . | . . Launcher . | . . Special Weapon . | . . Impact Weapon . | . . Slashing Weapon . | . . Piercing Weapon . | . . Special Melee Weapon . | . . Unidentified Prototypes . | . . Parts Lost 7 | . 7 Power . | . . Propulsion 3 | . 3 Utility . | . . Weapon 4 | . 4 Highest Loss Streak 3 | . 3 To Critical Strikes . | . . Average Backups 8 | 5 9 Power 1 | . 1 Propulsion 3 | 3 3 Utility 2 | . 2 Weapon . | . . Tool/Special . | . . Unused Backups 11 | . 11 Power 2 | . 2 Propulsion 3 | . 3 Utility 5 | . 5 Weapon 1 | . 1 Tool/Special . | . . Average Slot Usage (%) 95 | . 95 Engine 14 | . 14 Treads 10 | . 10 Leg 15 | . 15 Device 9 | . 9 Storage 14 | . 14 Protection 3 | . 3 Energy Gun 9 | . 9 Ballistic Gun 17 | . 17 Peak Build Rating 8 | 6 8 Average Rating 7 | 5 7 On Entrance 3 | . 6 Avg Prop Armor Cover (%) 11 | . 11 Naked Turns . | . . Heaviest Build 88 | 12 88 Greatest Support 40 | 40 40 Greatest Overweight (x) 8 | . 8 Average Overweight (x) 2 | . 3 Largest Inventory Capacity 25 | 8 25 Average Capacity 20 | 7 23 Most Carried 12 | 6 12 Average Carried 8 | 5 9 Final Capacity 25 | 8 25 Final Carried 12 | 6 12 Class Distribution -------------------- 100% | Mutant Dominant Class ---------------- Mutant | -10/Materials Resources | -11 -10 ----------- Run | Yrd Mat Matter Collected 520 | 185 335 Remotely . | . . Salvage Created 567 | . 567 Parts 31 | . 31 Haulers Intercepted . | . . Recyclers Shooed . | . . Parts Field Recycled . | . . Retrieved Matter . | . . Parts Self-Destructed . | . . Prevented . | . . Parts Restored . | . . Kills | -11 -10 ------- Run | Yrd Mat Combat Hostiles Destroyed 14 | . 14 Guns 13 | . 13 AOE 1 | . 1 Classes Destroyed 3 | . 3 Builder 1 | . 1 Swarmer 3 | . 3 Grunt 11 | . 11 Best Kill Streak 4 | . 4 Combat Bots Only 4 | . 4 Max Kills in Single Turn 2 | . 2 Gunslinging 1 | . 1 Exploded 1 | . 1 Melee . | . . Uniques/NPCs Destroyed . | . . Combat | -11 -10 -------- Run | Yrd Mat Hostile Shots Fired 133 | . 133 Missed 30 | . 30 Hits 103 | . 103 Projectile 103 | . 103 Critical Strikes 4 | . 4 Actively Blocked 1 | . 1 Damage Taken 1272 | . 1272 Core 256 | . 256 Absorbed by Shields . | . . Redirected to Shielding 7 | . 7 Regen/Repaired (Parts) 93 | . 93 Core Remaining (%) 100 | 100 . Volleys Fired 59 | . 59 Largest 2 | . 2 Hottest 60 | . 60 Shots Fired 89 | . 89 Gun 89 | . 89 Cannon . | . . Launcher . | . . Special . | . . Kinetic 77 | . 77 Thermal 5 | . 5 Explosive . | . . Electromagnetic 7 | . 7 Robot Hit Streak 11 | . 11 Robot Miss Streak 2 | . 2 Penetration Max . | . . Secondary Targets 3 | . 3 Max Gunslinging Chain 1 | . 1 Shots Hit Robots 62 | . 62 Core Hits 30 | . 30 Critical Kills . | . . Critical Parts Destroyed . | . . Critical Strikes 1 | . 1 Corrupt 1 | . 1 Melee Attacks . | . . Impact . | . . Slashing . | . . Piercing . | . . Sneak Attacks . | . . Combat Hostiles . | . . Follow-up Attacks . | . . Damage Inflicted 767 | . 767 Guns 709 | . 709 Cannons . | . . Explosions 58 | . 58 Melee . | . . Ramming . | . . Kinetic 591 | . 591 Thermal 92 | . 92 Explosive . | . . Electromagnetic 84 | . 84 Impact . | . . Slashing . | . . Piercing . | . . Highest Corruption 3 | . 3 Average Corruption 1 | . 1 Corruption Purged . | . . Corruption Blocked . | . . Effects 7 | . 7 Matter Fused 3 | . 3 Energy Discharges 1 | . 1 Data Loss (minor) 1 | . 1 Data Loss (major) 1 | . 1 Weapon Failures 1 | . 1 Overload Shots . | . . Overflow Damage . | . . Projectiles . | . . Explosions . | . . Melee . | . . Knockbacks . | . . Impact . | . . Kinetic . | . . Secondary . | . . Self-Inflicted Damage . | . . Shots . | . . Rammed . | . . Targets Rammed . | . . Kicked . | . . Crushed . | . . Highest Temperature 48 | . 48 Average Temperature 13 | . 13 Received Heat Transfer 627 | . 627 Siege Activations . | . . Martial Activations . | . . Shielding Activations . | . . Robots Disrupted . | . . Combat Hostiles . | . . Robots Corrupted . | . . Combat Hostiles . | . . Parts Fried . | . . Impact Corruptions . | . . Robots Melted . | . . Combat Hostiles . | . . Parts Melted . | . . Heat Transferred 175 | . 175 Parts Sabotaged . | . . Parts Stolen . | . . Parts Stripped . | . . Power Chain Reactions 1 | . 1 Alert | -11 -10 ------- Run | Yrd Mat Maximum Alert Level . | . . Low Security (%) 100 | 100 100 Level 1 . | . . Level 2 . | . . Level 3 . | . . Level 4 . | . . Level 5 . | . . High Security . | . . Max Security . | . . Peak Influence 96 | . 96 Initial . | . . Average 11 | . 13 Influence Increases 358 | . 358 Destroy 0b10 Robot/C 280 | . 280 Destroy 0b10 Robot/NC 5 | . 5 Destroy Leader 70 | . 70 Destroy Structure 3 | . 3 Influence Decreases 358 | . 358 Time Decay 308 | . 308 Lost Part 50 | . 50 Squads Dispatched 4 | . 4 Investigation 3 | . 3 Extermination . | . . Reinforcement 1 | . 1 Assault . | . . Garrison . | . . Intercept . | . . Searches Triggered . | . . Construction Impeded . | . . Haulers Reinforced . | . . Active Scanning Responses . | . . Cargo Convoy Interrupts . | . . Stealth | -11 -10 --------- Run | Yrd Mat Distress Signals 1 | . 1 Communications Jammed . | . . Distress Signals . | . . Times Spotted 27 | . 27 Peak Tracking Total 4 | . 4 Tactical Retreats . | . . Traps | -11 -10 ------- Run | Yrd Mat Traps Triggered 6 | . 6 Indirectly . | . . Trap Hack Attempts . | . . Triggered . | . . Disarmed . | . . Reprogrammed . | . . Reused . | . . Traps Extracted . | . . Installed . | . . Triggered . | . . Machines | -11 -10 ---------- Run | Yrd Mat Machines Disabled . | . . Max in Single Turn . | . . Machines Repaired . | . . Machines Dismantled . | . . Machines Sabotaged . | . . Overloaded Fab Kills . | . . Hacking | -11 -10 --------- Run | Yrd Mat Machines Accessed 4 | . 4 Terminals 3 | . 3 Fabricators . | . . Repair Stations 1 | . 1 Recycling Units . | . . Scanalyzers . | . . Garrison Access . | . . Total Hacks 11 | . 11 Successful 4 | . 4 Failed 7 | . 7 Catastrophic 1 | . 1 Database Lockouts . | . . Manual . | . . Terminals 7 | . 7 Fabricators . | . . Repair Stations 4 | . 4 Recycling Units . | . . Scanalyzers . | . . Garrison Access . | . . Terminal Hacks 1 | . 1 Robot Analysis 1 | . 1 Fabricator Hacks . | . . Repair Station Hacks 3 | . 3 Scan Component 2 | . 2 Repair 1 | . 1 Recycling Unit Hacks . | . . Scanalyzer . | . . Garrison Access Hacks . | . . Unauthorized Hacks . | . . Terminals . | . . Fabricators . | . . Repair Stations . | . . Recycling Units . | . . Scanalyzers . | . . Garrison Access . | . . Data Cores Recovered . | . . Used . | . . Hacking Detections 3 | . 3 Full Trace Events 3 | . 3 Feedback Events . | . . Feedback Blocked . | . . Robot Schematics Acquired . | . . Robots Built . | . . Authchips . | . . Time . | . . Total Robot Build Rating . | . . Part Schematics Acquired . | . . Parts Built . | . . Authchips . | . . Time . | . . Total Part Build Rating . | . . Part Studies Acquired . | . . Parts Repaired 1 | . 1 Time 26 | . 26 Parts Recycled . | . . Recycled Matter . | . . Retrieved Matter . | . . Retrieved Components . | . . Parts Scanalyzed . | . . Part Schematics Acquired . | . . Parts Damaged . | . . Bothacking | -11 -10 ------------ Run | Yrd Mat Used RIF Installer . | . . Robots Hacked . | . . Non-combat . | . . Combat . | . . Robot Hacks Applied . | . . Relay Couplers Released . | . . Fabnet Peak Effective % . | . . Robots Rewired . | . . Allies Hacked . | . . Hacks Repelled . | . . Allies | -11 -10 -------- Run | Yrd Mat Total Allies . | . . Largest Group . | . . Highest-Rated Group . | . . Highest-Rated Ally . | . . Total Orders . | . . Ally Attacks . | . . Total Damage . | . . Kills . | . . Allies Corrupted . | . . Allies Melted . | . . Intel | -11 -10 ------- Run | Yrd Mat Active Infowar (turns) . | . . Robot Analysis Total 1 | . 1 Derelict Logs Recovered . | . . Drone Launches . | . . Drone Recoveries . | . . Exploration | -11 -10 ------------- Run | Yrd Mat Turns Passed 2554 | 343 2211 Spaces Moved 695 | 172 523 Core 7 | 7 . Treads 413 | 165 248 Legs 275 | . 275 Wheels . | . . Hover . | . . Flight . | . . Fastest Speed 50 | 50 160 Average Speed 313 | 155 365 Slowest Speed 680 | 160 680 Overloaded Moves . | . . Propulsion Burnouts . | . . Robots Hopped . | . . Potential Cave-ins . | . . Cave-ins Triggered . | . . Exploration Rate (%) 42 | 8 76 Regions Visited 1 Branch Regions . Pre-discovered Areas . | . . Known Exits Taken . | . . Unknown Exits Taken 1 | 1 . Scrap Searched . | . . Spaces Dug . | . . Terrain Destroyed 2 | . 2 Melee . | . . Projectile . | . . AOE 2 | . 2 Terrain Rammed . | . . Walls Destroyed . | . . Machines Disabled . | . . Actions | -11 -10 --------- Run | Yrd Mat Total 991 | 248 743 Wait 187 | 59 128 Move 694 | 171 523 Hop . | . . Pick Up 30 | 12 18 Fast Attach . | . . Attach 15 | 6 9 Detach . | . . Swap 3 | . 3 Drop 3 | . 3 Fire 59 | . 59 Melee . | . . Ram . | . . Kick . | . . Crush . | . . Escape Stasis . | . . Rewire . | . . Trap . | . . Miscellaneous . | . . Route ------- -11/Scrapyard -10/Materials (discovered 3 exits: [*Mat x2] / [*Sub]) History --------- Turn | Location | Event 4 | -11/Scrapyard | Discovered new exit (range 15) 344 | -11/Scrapyard | Entered Materials 345 | -10/Materials | Build established: Mutant 788 | -10/Materials | Discovered new exit (range 6) 878 | -10/Materials | Repaired Lgt. Treads 1221 | -10/Materials | Core integrity fell below 50% 1274 | -10/Materials | Core integrity fell below 20% 1316 | -10/Materials | Lost 3 parts (2n1w) 1444 | -10/Materials | Discovered new exit (range 15) 2149 | -10/Materials | Discovered new exit (range 5) 2555 | -10/Materials | Destroyed by G-34 Mercenary with Small Laser Last Messages --------------- K-01 Serf cleans the Terminal. Connecting with Terminal... Acquired Weapon Shielding. Acquired Propulsion Shielding. Acquired Utility Shielding. EXIT=FOUND Connecting with D.C.S.S. Altar Unit... Acquired Targeting Computer. Triggered Shock Trap. The floor emits a surge of raw power. System corrupted (+1). Triggered Shock Trap. The floor emits a surge of raw power. System corrupted (+1). Connecting with Terminal... ALERT: Suspicious activity at Terminal M002. Dispatching Investigation squad. System corrupted: Substantial component data lost. System corrupted: Component data lost. Map ----- +----------------------------------------------------+ | | | | | | | | | | | | | | | | | | | ????????????????????????????????????????????? | | ????#######?????????????????##########??????? | | ????# ######???????????# #??????? | | ##### ^^############# #??????? | | ^ + #??????? | | #+### #??######## # #??????? | | # ### ##?????????# ###########??????? | | ###+###?# #??????????# #????????????????? | | # ??# #??????????# #????????????????? | | #<### ##+#####??#####+##???????????????? | | ##### # #??# #???????????????? | | ## # """ #??# """ #??????? ???????? | | < ## # """ #??# """ "#??????? ???????? | | ## # """ #??# """ T#?????? ????????? | | ######### #??# "#????? ???????? | | #???????#! #??# #???? #???????? | | ############+#########@####### #???????? | | !! g ! / "????? | | ^ #???????? | | ^ ^ """ #???????? | | ############+## """ w#######???????? | | #???????# # """ #?????????????? | | #???????# # u #?????????????? | | #???????# # #?????????????? | | ####????# + #?????????????? | | !##???########+#######% ####??????????? | | !#?????????? ?????# # ############ | | !#?????????? ?????# # ## # | | % !#????????? ????# # ## ? | | !#?????????! ""????# ##+### """ ? | | !##????????!! """???# # """""? | | ####?????????!! """???# + [ """""? | | #??????????? """ ??# # """""? | | #??????????? ?????# ###### """ ? | | #??????????#######?????# #????# ? | | #??????????????????????# #????# # | | #??????????????????????# #????########## | | #??????????????????????# #?????????????? | | #??????????????????????# #?????????????? | | #+##??????????????????????# #???########### | | ? ??????????????########## ##### # | +----------------------------------------------------+ Best States ------------- Heat Dissipation 35 Energy Generation 10 Energy Capacity 125 Matter Stores 300 Matter Capacity 300 Sight Range 16 Terrain Scan Density 10 Propulsion Shielding 33 Evasion (%) 40 Recoil Reduction 2 Item Schematics ----------------- None Robot Schematics ------------------ None Fabricated ------------ Nothing Repaired ---------- Lgt. Treads | 33% | -10/Materials Studied --------- None Alien Tech Used ----------------- None Achievements -------------- None Challenges ------------ None Game ------ Seed PiercingShockSpecial Manual? 0 Play Time 00:14:48 Cumulative 2.7 hours Start 2026.07.14 @ 19:39:04 End 2026.07.14 @ 19:52:08 Sessions 1 Manual Loads 0 Difficulty Rogue Special Mode None Game No. 6 Rogue 6 Adventurer 0 Explorer 0 Win Type - Total 0 Types 0/0/0/0/0/0/0/0/0/0 Lore% 4 Gallery% 4 Achievement% 6 Wizard Run 0 Options --------- Layout 1 ASCII 0 Keyboard 0 Movement Mouse Keybinds 0 Fullscreen 1 Font 48/Smallcaps Map View 50x35 Zoom Use 0% Tactical HUD 0 Map Filters NONE Filters NONE Steam 1 RUN: 13a3da24-b3c2-403e-967e-38eb4243a335